[Event "*** Titled Tuesday Blitz AM"]
[Site "Chess.com"]
[Date "2020.01.07"]
[Round "2"]
[White "Saloni1299"]
[Black "FrogMist"]
[Result "0-1"]
[WhiteElo "2059"]
[BlackElo "2431"]
[TimeControl "180+2"]
[EndTime "9:20:02 PST"]
[Termination "FrogMist won by resignation"]

1. e4 {[%clk 0:03:01.9]} 1... e5 {[%clk 0:03:00.9]} 2. Nf3 {[%clk 0:03:02.8]}
2... Nc6 {[%clk 0:03:02.3]} 3. Bb5 {[%clk 0:03:03.3]} 3... a6 {[%clk 0:03:02.2]}
4. Ba4 {[%clk 0:03:04.3]} 4... Nf6 {[%clk 0:03:03.2]} 5. O-O {[%clk 0:03:04.7]}
5... Be7 {[%clk 0:03:03.9]} 6. Re1 {[%clk 0:03:05.2]} 6... b5 {[%clk 0:03:05.3]}
7. Bb3 {[%clk 0:03:05.4]} 7... O-O {[%clk 0:03:06.9]} 8. c3 {[%clk 0:03:05.3]}
8... d5 {[%clk 0:03:06.8]} 9. exd5 {[%clk 0:03:06]} 9... Nxd5 {[%clk 0:03:08.7]}
10. Nxe5 {[%clk 0:03:06.8]} 10... Nxe5 {[%clk 0:03:10.6]} 11. Rxe5 {[%clk
0:03:07.9]} 11... c6 {[%clk 0:03:12.1]} 12. d3 {[%clk 0:03:08.3]} 12... Bd6
{[%clk 0:03:13]} 13. Re1 {[%clk 0:03:08.7]} 13... Bf5 {[%clk 0:03:11.7]} 14. Qf3
{[%clk 0:03:05.7]} 14... Qf6 {[%clk 0:03:11.9]} 15. Be3 {[%clk 0:02:23.5]} 15...
Qg6 {[%clk 0:02:52.7]} 16. Bxd5 {[%clk 0:02:15.3]} 16... cxd5 {[%clk 0:02:53.6]}
17. Qxd5 {[%clk 0:02:12.8]} 17... Rad8 {[%clk 0:02:42.2]} 18. Qf3 {[%clk
0:02:04.7]} 18... Rfe8 {[%clk 0:01:40.8]} 19. Nd2 {[%clk 0:01:51.4]} 19... Bxd3
{[%clk 0:01:21.2]} 20. Bb6 {[%clk 0:01:46.7]} 20... Bxh2+ {[%clk 0:00:59.8]} 21.
Kxh2 {[%clk 0:01:36.4]} 21... Qxb6 {[%clk 0:01:01.7]} 22. Re7 {[%clk 0:01:34.6]}
22... Rxe7 {[%clk 0:00:58]} 0-1

[Event "*** Titled Tuesday Blitz AM"]
[Site "Chess.com"]
[Date "2020.01.07"]
[Round "2"]
[White "temus_galaktionov"]
[Black "Ovsiannikov_Maxim"]
[Result "1-0"]
[WhiteElo "2737"]
[BlackElo "2430"]
[TimeControl "180+2"]
[EndTime "9:20:08 PST"]
[Termination "temus_galaktionov won by resignation"]

1. d4 {[%clk 0:03:01.9]} 1... d5 {[%clk 0:03:00.4]} 2. c4 {[%clk 0:03:01.5]}
2... Nc6 {[%clk 0:03:01.6]} 3. Nf3 {[%clk 0:02:57.5]} 3... Bg4 {[%clk
0:03:02.1]} 4. cxd5 {[%clk 0:02:39.6]} 4... Bxf3 {[%clk 0:03:02.7]} 5. dxc6
{[%clk 0:02:41]} 5... Bxc6 {[%clk 0:03:03.1]} 6. Nc3 {[%clk 0:02:42.6]} 6... e6
{[%clk 0:03:02.9]} 7. Bf4 {[%clk 0:02:43.4]} 7... Bb4 {[%clk 0:03:00.9]} 8. e3
{[%clk 0:02:42]} 8... Nf6 {[%clk 0:03:00.2]} 9. Qb3 {[%clk 0:02:42.4]} 9... Nd5
{[%clk 0:02:51.8]} 10. Be5 {[%clk 0:02:31.5]} 10... O-O {[%clk 0:02:35.6]} 11.
Bd3 {[%clk 0:02:06.1]} 11... Qg5 {[%clk 0:02:16.9]} 12. O-O-O {[%clk 0:02:03.4]}
12... Bxc3 {[%clk 0:02:03.5]} 13. bxc3 {[%clk 0:02:00.4]} 13... f6 {[%clk
0:01:56.4]} 14. Bg3 {[%clk 0:01:58.2]} 14... Rfe8 {[%clk 0:01:36.8]} 15. h4
{[%clk 0:01:54.1]} 15... Qh6 {[%clk 0:01:36.4]} 16. c4 {[%clk 0:01:44.8]} 16...
Nxe3 {[%clk 0:01:35.7]} 17. fxe3 {[%clk 0:01:40.9]} 17... Qxe3+ {[%clk
0:01:36.6]} 18. Rd2 {[%clk 0:01:39.5]} 18... Kh8 {[%clk 0:01:20.2]} 19. Bc2
{[%clk 0:01:35.8]} 19... Qh6 {[%clk 0:01:12.2]} 20. Re1 {[%clk 0:01:34.7]} 20...
Rad8 {[%clk 0:01:11.6]} 21. Qe3 {[%clk 0:01:32.8]} 21... Qh5 {[%clk 0:00:58.4]}
22. Bxc7 {[%clk 0:01:31]} 22... Rb8 {[%clk 0:00:55.7]} 23. Bxb8 {[%clk
0:01:30.1]} 1-0

[Event "*** Titled Tuesday Blitz AM"]
[Site "Chess.com"]
[Date "2020.01.07"]
[Round "2"]
[White "smshk35"]
[Black "TrimitziosP7"]
[Result "0-1"]
[WhiteElo "2342"]
[BlackElo "2722"]
[TimeControl "180+2"]
[EndTime "9:20:16 PST"]
[Termination "TrimitziosP7 won by resignation"]

1. e4 {[%clk 0:03:01.9]} 1... e5 {[%clk 0:02:55.6]} 2. Nf3 {[%clk 0:03:01.8]}
2... Nc6 {[%clk 0:02:55.3]} 3. d4 {[%clk 0:03:02.8]} 3... exd4 {[%clk
0:02:55.8]} 4. Nxd4 {[%clk 0:03:04.7]} 4... Nf6 {[%clk 0:02:54.6]} 5. Nxc6
{[%clk 0:03:05.5]} 5... bxc6 {[%clk 0:02:55.3]} 6. e5 {[%clk 0:03:06.9]} 6...
Qe7 {[%clk 0:02:54.4]} 7. Qe2 {[%clk 0:03:08.1]} 7... Nd5 {[%clk 0:02:55.2]} 8.
c4 {[%clk 0:03:08.7]} 8... Ba6 {[%clk 0:02:54.9]} 9. b3 {[%clk 0:03:09.4]} 9...
g6 {[%clk 0:02:55.3]} 10. Ba3 {[%clk 0:03:10.1]} 10... Qg5 {[%clk 0:02:52.3]}
11. h4 {[%clk 0:02:56.3]} 11... Qh6 {[%clk 0:02:51.8]} 12. Qd2 {[%clk
0:02:44.6]} 12... Qxd2+ {[%clk 0:02:48.9]} 13. Kxd2 {[%clk 0:02:39]} 13... Bxa3
{[%clk 0:02:50.4]} 14. Nxa3 {[%clk 0:02:39.8]} 14... Nb6 {[%clk 0:02:50.2]} 15.
g3 {[%clk 0:02:34.1]} 15... O-O-O {[%clk 0:02:50.4]} 16. c5 {[%clk 0:02:24.4]}
16... Bxf1 {[%clk 0:02:51]} 17. cxb6 {[%clk 0:02:25.8]} 17... Ba6 {[%clk
0:02:51.8]} 18. bxa7 {[%clk 0:02:25.8]} 18... Kb7 {[%clk 0:02:52.9]} 19. Kc3
{[%clk 0:02:20.5]} 19... d6 {[%clk 0:02:53.3]} 20. exd6 {[%clk 0:02:15.1]} 20...
cxd6 {[%clk 0:02:55.2]} 21. Rad1 {[%clk 0:02:14]} 21... Kxa7 {[%clk 0:02:52.6]}
22. Rhe1 {[%clk 0:02:14.7]} 22... Rd7 {[%clk 0:02:52.4]} 23. Nc4 {[%clk
0:02:14]} 23... Rhd8 {[%clk 0:02:52.4]} 24. Rd4 {[%clk 0:02:01]} 24... c5 {[%clk
0:02:52.5]} 25. Rd2 {[%clk 0:01:56.1]} 25... d5 {[%clk 0:02:52.5]} 26. Ne5
{[%clk 0:01:57.1]} 26... Rc7 {[%clk 0:02:53.4]} 27. f4 {[%clk 0:01:48.4]} 27...
d4+ {[%clk 0:02:47.9]} 28. Kc2 {[%clk 0:01:44.4]} 28... c4 {[%clk 0:02:46.8]}
29. bxc4 {[%clk 0:01:41.8]} 29... Bxc4 {[%clk 0:02:48.7]} 30. Nxc4 {[%clk
0:01:42.9]} 30... Rxc4+ {[%clk 0:02:50.6]} 31. Kb1 {[%clk 0:01:39.3]} 31... Rd7
{[%clk 0:02:50.7]} 32. Re4 {[%clk 0:01:34.6]} 32... f5 {[%clk 0:02:48.6]} 33.
Re6 {[%clk 0:01:15.3]} 33... d3 {[%clk 0:02:46.6]} 34. Re3 {[%clk 0:01:11]}
34... Rb7+ {[%clk 0:02:45.6]} 35. Rb2 {[%clk 0:01:07.4]} 35... d2 {[%clk
0:02:43.6]} 36. Rxb7+ {[%clk 0:00:48.8]} 36... Kxb7 {[%clk 0:02:43]} 37. Rb3+
{[%clk 0:00:48.6]} 37... Kc6 {[%clk 0:02:40.8]} 38. Rd3 {[%clk 0:00:49.5]} 38...
Rc1+ {[%clk 0:02:41.1]} 39. Kb2 {[%clk 0:00:50.9]} 39... d1=Q {[%clk 0:02:43]}
40. Rxd1 {[%clk 0:00:52.1]} 40... Rxd1 {[%clk 0:02:44.8]} 0-1

[Event "*** Titled Tuesday Blitz AM"]
[Site "Chess.com"]
[Date "2020.01.07"]
[Round "2"]
[White "hansen"]
[Black "econpower"]
[Result "1-0"]
[WhiteElo "2915"]
[BlackElo "2632"]
[TimeControl "180+2"]
[EndTime "9:20:19 PST"]
[Termination "hansen won by resignation"]

1. b4 {[%clk 0:02:55.6]} 1... g6 {[%clk 0:02:59.4]} 2. Bb2 {[%clk 0:02:56]} 2...
Nf6 {[%clk 0:03:01.1]} 3. c4 {[%clk 0:02:44.4]} 3... Bg7 {[%clk 0:03:01.7]} 4.
Nf3 {[%clk 0:02:46]} 4... O-O {[%clk 0:03:02.6]} 5. e3 {[%clk 0:02:43.9]} 5...
d6 {[%clk 0:03:03.2]} 6. d4 {[%clk 0:02:40.8]} 6... c5 {[%clk 0:02:52.4]} 7. a3
{[%clk 0:02:33.9]} 7... a5 {[%clk 0:02:46.9]} 8. bxc5 {[%clk 0:02:30]} 8... dxc5
{[%clk 0:02:47.8]} 9. d5 {[%clk 0:02:31.6]} 9... e6 {[%clk 0:02:47]} 10. dxe6
{[%clk 0:02:02.7]} 10... Bxe6 {[%clk 0:02:47.1]} 11. Nbd2 {[%clk 0:02:01.1]}
11... a4 {[%clk 0:02:44.5]} 12. Be2 {[%clk 0:01:59.1]} 12... Nc6 {[%clk
0:02:40.7]} 13. O-O {[%clk 0:02:00.4]} 13... Bf5 {[%clk 0:02:30.3]} 14. h3
{[%clk 0:01:55.7]} 14... Qe7 {[%clk 0:02:30]} 15. Bc3 {[%clk 0:01:52.6]} 15...
Rfd8 {[%clk 0:02:27]} 16. Qc1 {[%clk 0:01:53.6]} 16... Bd3 {[%clk 0:02:20.6]}
17. Bxd3 {[%clk 0:01:49.2]} 17... Rxd3 {[%clk 0:02:21.4]} 18. Rb1 {[%clk
0:01:50.2]} 18... Ne4 {[%clk 0:01:41.8]} 19. Nxe4 {[%clk 0:01:44.9]} 19... Qxe4
{[%clk 0:01:41.3]} 20. Bxg7 {[%clk 0:01:45.8]} 20... Kxg7 {[%clk 0:01:42.4]} 21.
Rxb7 {[%clk 0:01:40.5]} 21... Ne5 {[%clk 0:01:42.8]} 22. Qb2 {[%clk 0:01:35.8]}
22... Re8 {[%clk 0:01:32.2]} 23. Ng5 {[%clk 0:01:07.3]} 23... Rd2 {[%clk
0:01:15.9]} 24. Rxf7+ {[%clk 0:00:55.2]} 1-0

[Event "*** Titled Tuesday Blitz AM"]
[Site "Chess.com"]
[Date "2020.01.07"]
[Round "2"]
[White "ohusbands"]
[Black "narutosmith"]
[Result "1-0"]
[WhiteElo "2516"]
[BlackElo "2250"]
[TimeControl "180+2"]
[EndTime "9:20:22 PST"]
[Termination "ohusbands won on time"]

1. e4 {[%clk 0:03:01.9]} 1... c5 {[%clk 0:02:59.7]} 2. Nf3 {[%clk 0:03:02.5]}
2... e6 {[%clk 0:03:00.8]} 3. d4 {[%clk 0:03:04.1]} 3... cxd4 {[%clk 0:03:02.4]}
4. Nxd4 {[%clk 0:03:05.4]} 4... a6 {[%clk 0:03:03]} 5. Nc3 {[%clk 0:03:05.7]}
5... Qc7 {[%clk 0:03:03.6]} 6. Bd3 {[%clk 0:03:05.5]} 6... Nf6 {[%clk 0:03:03]}
7. O-O {[%clk 0:03:06.8]} 7... Bc5 {[%clk 0:03:03.5]} 8. Nb3 {[%clk 0:03:07]}
8... Be7 {[%clk 0:03:04.2]} 9. Qe2 {[%clk 0:03:07.3]} 9... d6 {[%clk 0:03:04.5]}
10. f4 {[%clk 0:03:09]} 10... Nbd7 {[%clk 0:03:03.5]} 11. Bd2 {[%clk 0:03:09.4]}
11... O-O {[%clk 0:02:56.2]} 12. Rae1 {[%clk 0:03:09.3]} 12... e5 {[%clk
0:02:47.6]} 13. Nd5 {[%clk 0:02:41.3]} 13... Nxd5 {[%clk 0:02:41.7]} 14. exd5
{[%clk 0:02:43.2]} 14... Bf6 {[%clk 0:02:06.3]} 15. Qe4 {[%clk 0:02:03.5]} 15...
g6 {[%clk 0:02:01.3]} 16. fxe5 {[%clk 0:02:04.4]} 16... Bxe5 {[%clk 0:01:54.6]}
17. Bh6 {[%clk 0:01:58.4]} 17... Re8 {[%clk 0:01:44.7]} 18. Qf3 {[%clk
0:01:52.9]} 18... Nf6 {[%clk 0:01:37.1]} 19. Rxe5 {[%clk 0:01:50.8]} 1-0

[Event "*** Titled Tuesday Blitz AM"]
[Site "Chess.com"]
[Date "2020.01.07"]
[Round "2"]
[White "Annawel"]
[Black "SergeyShtyka"]
[Result "1-0"]
[WhiteElo "2995"]
[BlackElo "2084"]
[TimeControl "180+2"]
[EndTime "9:20:26 PST"]
[Termination "Annawel won by resignation"]

1. f4 {[%clk 0:02:59.7]} 1... d5 {[%clk 0:02:56.5]} 2. Nf3 {[%clk 0:02:57.2]}
2... Nf6 {[%clk 0:02:56.1]} 3. g3 {[%clk 0:02:54.8]} 3... g6 {[%clk 0:02:55.8]}
4. Bg2 {[%clk 0:02:56.7]} 4... Bg7 {[%clk 0:02:56.9]} 5. O-O {[%clk 0:02:58.1]}
5... O-O {[%clk 0:02:57.4]} 6. d3 {[%clk 0:03:00]} 6... c5 {[%clk 0:02:53.7]} 7.
c3 {[%clk 0:03:00.7]} 7... Nc6 {[%clk 0:02:54.2]} 8. Na3 {[%clk 0:03:00.6]} 8...
b6 {[%clk 0:02:49.5]} 9. Qa4 {[%clk 0:03:00.9]} 9... Bb7 {[%clk 0:02:49.9]} 10.
e4 {[%clk 0:03:02]} 10... dxe4 {[%clk 0:02:46.9]} 11. dxe4 {[%clk 0:03:03.9]}
11... e5 {[%clk 0:02:19.8]} 12. f5 {[%clk 0:03:04.1]} 12... a6 {[%clk
0:02:09.3]} 13. Bg5 {[%clk 0:03:03.7]} 13... b5 {[%clk 0:02:08.1]} 14. Qc2
{[%clk 0:03:05.2]} 14... Qb6 {[%clk 0:02:02.4]} 15. Rad1 {[%clk 0:03:01.8]}
15... c4+ {[%clk 0:01:38.5]} 16. Kh1 {[%clk 0:03:02.9]} 16... Ng4 {[%clk
0:01:34.8]} 17. Qe2 {[%clk 0:03:00.8]} 17... f6 {[%clk 0:01:29.9]} 18. Bc1
{[%clk 0:03:02.1]} 18... Rad8 {[%clk 0:01:28.5]} 19. Rxd8 {[%clk 0:03:03.7]}
19... Rxd8 {[%clk 0:01:28.8]} 20. fxg6 {[%clk 0:03:05.6]} 20... hxg6 {[%clk
0:01:29.6]} 21. Nh4 {[%clk 0:03:07.2]} 21... Bc8 {[%clk 0:01:06.4]} 22. h3
{[%clk 0:03:08]} 22... Nh6 {[%clk 0:01:06.8]} 23. Nxg6 {[%clk 0:03:09.6]} 23...
Nf7 {[%clk 0:01:00.1]} 24. Qh5 {[%clk 0:03:11]} 24... a5 {[%clk 0:00:46.1]} 25.
Nc2 {[%clk 0:03:12.2]} 25... b4 {[%clk 0:00:44.1]} 26. Ne3 {[%clk 0:03:13.8]}
26... bxc3 {[%clk 0:00:44.1]} 27. bxc3 {[%clk 0:03:15.7]} 27... Qc5 {[%clk
0:00:44.2]} 28. Nd5 {[%clk 0:03:17.2]} 28... Be6 {[%clk 0:00:29.7]} 29. Be3
{[%clk 0:03:15.3]} 29... Qa3 {[%clk 0:00:27.8]} 30. Nxf6+ {[%clk 0:03:14.6]}
30... Bxf6 {[%clk 0:00:28.6]} 31. Rxf6 {[%clk 0:03:16.5]} 31... Rd6 {[%clk
0:00:20.7]} 32. Nh4 {[%clk 0:03:03]} 32... Kf8 {[%clk 0:00:13]} 33. Bh6+ {[%clk
0:03:01.5]} 33... Ke7 {[%clk 0:00:14]} 34. Bg5 {[%clk 0:03:02.2]} 34... Ke8
{[%clk 0:00:12.9]} 35. Nf5 {[%clk 0:03:01.2]} 35... Bxf5 {[%clk 0:00:13]} 36.
Qxf7+ {[%clk 0:03:02.3]} 36... Kd8 {[%clk 0:00:14.3]} 37. Rxd6+ {[%clk
0:03:03.7]} 1-0

[Event "*** Titled Tuesday Blitz AM"]
[Site "Chess.com"]
[Date "2020.01.07"]
[Round "2"]
[White "Yaacovn"]
[Black "viktorskliarov"]
[Result "0-1"]
[WhiteElo "2822"]
[BlackElo "2603"]
[TimeControl "180+2"]
[EndTime "9:20:29 PST"]
[Termination "viktorskliarov won by resignation"]

1. d4 {[%clk 0:03:01.9]} 1... Nf6 {[%clk 0:02:57.5]} 2. Nf3 {[%clk 0:03:00.3]}
2... g6 {[%clk 0:02:58]} 3. e3 {[%clk 0:03:00.5]} 3... Bg7 {[%clk 0:02:59]} 4.
Be2 {[%clk 0:03:01.9]} 4... O-O {[%clk 0:03:00.3]} 5. O-O {[%clk 0:03:03.4]}
5... d6 {[%clk 0:03:01.8]} 6. b3 {[%clk 0:03:04.9]} 6... c5 {[%clk 0:03:01]} 7.
Bb2 {[%clk 0:03:06.2]} 7... b6 {[%clk 0:02:58.3]} 8. c4 {[%clk 0:03:07]} 8...
cxd4 {[%clk 0:02:58.2]} 9. Nxd4 {[%clk 0:03:08]} 9... Bb7 {[%clk 0:02:57.9]} 10.
Nc3 {[%clk 0:03:08.6]} 10... Nbd7 {[%clk 0:02:58.6]} 11. Rc1 {[%clk 0:03:09.1]}
11... Rc8 {[%clk 0:02:59.2]} 12. Qd2 {[%clk 0:03:10.5]} 12... a6 {[%clk
0:02:56]} 13. Rfd1 {[%clk 0:03:11.7]} 13... Qc7 {[%clk 0:02:57.1]} 14. h3 {[%clk
0:03:13.1]} 14... Qb8 {[%clk 0:02:57.1]} 15. Bf1 {[%clk 0:03:13.4]} 15... Ne4
{[%clk 0:02:55.9]} 16. Nxe4 {[%clk 0:03:13.5]} 16... Bxe4 {[%clk 0:02:56.5]} 17.
Ne2 {[%clk 0:03:13.8]} 17... Bxb2 {[%clk 0:02:53.9]} 18. Qxb2 {[%clk 0:03:15.7]}
18... Nf6 {[%clk 0:02:52.9]} 19. Nf4 {[%clk 0:03:14.8]} 19... Rfd8 {[%clk
0:02:41.2]} 20. Be2 {[%clk 0:03:14.3]} 20... b5 {[%clk 0:02:22]} 21. Qd2 {[%clk
0:03:10.9]} 21... bxc4 {[%clk 0:02:14.7]} 22. Rxc4 {[%clk 0:03:07.6]} 22... Rxc4
{[%clk 0:02:13.3]} 23. Bxc4 {[%clk 0:03:09.5]} 23... Qb6 {[%clk 0:02:13]} 24.
Rc1 {[%clk 0:03:03.3]} 24... Kg7 {[%clk 0:02:03.3]} 25. Qb2 {[%clk 0:02:45]}
25... e5 {[%clk 0:01:42.4]} 26. Ne2 {[%clk 0:02:44.1]} 26... d5 {[%clk
0:01:41.2]} 27. Qxe5 {[%clk 0:02:20]} 27... dxc4 {[%clk 0:01:40.4]} 28. Rxc4
{[%clk 0:02:21]} 28... Bd3 {[%clk 0:01:36.8]} 29. Rd4 {[%clk 0:02:16.5]} 29...
Bxe2 {[%clk 0:01:36.3]} 30. g4 {[%clk 0:01:57.5]} 30... Rxd4 {[%clk 0:01:34.7]}
31. exd4 {[%clk 0:01:58.3]} 31... Qe6 {[%clk 0:01:35.5]} 32. Qf4 {[%clk
0:01:58]} 32... Nd5 {[%clk 0:01:33.7]} 33. Qd2 {[%clk 0:01:57]} 33... Bf3 {[%clk
0:01:31.7]} 34. Kh2 {[%clk 0:01:58.4]} 34... Qd6+ {[%clk 0:01:28.4]} 35. Kg1
{[%clk 0:01:59.4]} 35... h5 {[%clk 0:01:27.6]} 36. Qd3 {[%clk 0:01:58.8]} 36...
hxg4 {[%clk 0:01:26.2]} 37. hxg4 {[%clk 0:02:00]} 37... Qf4 {[%clk 0:01:24.5]}
38. Kf1 {[%clk 0:01:59]} 0-1

[Event "*** Titled Tuesday Blitz AM"]
[Site "Chess.com"]
[Date "2020.01.07"]
[Round "2"]
[White "Sven_Tica"]
[Black "mishanick"]
[Result "0-1"]
[WhiteElo "2652"]
[BlackElo "2965"]
[TimeControl "180+2"]
[EndTime "9:20:45 PST"]
[Termination "mishanick won by resignation"]

1. d4 {[%clk 0:03:01.9]} 1... Nf6 {[%clk 0:02:57.4]} 2. c4 {[%clk 0:03:03.2]}
2... e6 {[%clk 0:02:58.6]} 3. g3 {[%clk 0:03:04]} 3... d5 {[%clk 0:03:00]} 4.
Bg2 {[%clk 0:03:05.5]} 4... Bb4+ {[%clk 0:03:00.7]} 5. Bd2 {[%clk 0:03:06.6]}
5... Be7 {[%clk 0:03:01.7]} 6. Nf3 {[%clk 0:03:07.9]} 6... c6 {[%clk 0:03:03.4]}
7. Qc2 {[%clk 0:03:09.1]} 7... Nbd7 {[%clk 0:03:04.5]} 8. Bf4 {[%clk 0:03:09.8]}
8... O-O {[%clk 0:03:04.6]} 9. O-O {[%clk 0:03:10.9]} 9... b6 {[%clk 0:03:06.2]}
10. Rd1 {[%clk 0:03:12.1]} 10... Ba6 {[%clk 0:03:06.2]} 11. Ne5 {[%clk
0:03:13.4]} 11... Nxe5 {[%clk 0:03:00.5]} 12. dxe5 {[%clk 0:03:14]} 12... Nd7
{[%clk 0:02:50.6]} 13. cxd5 {[%clk 0:03:13.7]} 13... cxd5 {[%clk 0:02:51.6]} 14.
e4 {[%clk 0:03:15]} 14... Rc8 {[%clk 0:02:52]} 15. Qd2 {[%clk 0:03:07.5]} 15...
g5 {[%clk 0:02:17.9]} 16. Be3 {[%clk 0:02:58.1]} 16... Nxe5 {[%clk 0:02:16.8]}
17. exd5 {[%clk 0:02:59.2]} 17... Nc4 {[%clk 0:02:17.9]} 18. Qe1 {[%clk
0:02:50.5]} 18... Nxe3 {[%clk 0:02:18.2]} 19. Qxe3 {[%clk 0:02:51.2]} 19... Bc5
{[%clk 0:02:19.1]} 20. Qd2 {[%clk 0:02:49.1]} 20... exd5 {[%clk 0:02:12]} 21.
Bxd5 {[%clk 0:02:47.1]} 21... Qf6 {[%clk 0:01:51]} 22. Nc3 {[%clk 0:02:47.9]}
22... Qg6 {[%clk 0:01:49.4]} 23. Ne4 {[%clk 0:02:35.9]} 23... Be7 {[%clk
0:01:50]} 24. Rac1 {[%clk 0:02:34.1]} 24... Kg7 {[%clk 0:01:41.8]} 25. Qd4+
{[%clk 0:02:30.1]} 25... Bf6 {[%clk 0:01:41.7]} 26. Qa4 {[%clk 0:02:09.5]} 26...
Be2 {[%clk 0:01:42]} 27. Re1 {[%clk 0:01:58.4]} 27... Rxc1 {[%clk 0:01:28.5]}
28. Rxc1 {[%clk 0:01:59.4]} 28... Rd8 {[%clk 0:01:29.7]} 29. Bb3 {[%clk
0:01:32.9]} 29... Rd4 {[%clk 0:01:27.5]} 30. Nxf6 {[%clk 0:01:29.3]} 30... Rxa4
{[%clk 0:01:26.4]} 31. Ne8+ {[%clk 0:01:30.6]} 31... Kf8 {[%clk 0:01:24.5]} 32.
Bxa4 {[%clk 0:01:31.2]} 32... b5 {[%clk 0:01:26]} 33. Bb3 {[%clk 0:01:26.5]}
33... Kxe8 {[%clk 0:01:23.9]} 34. Re1 {[%clk 0:01:27.6]} 34... Qd3 {[%clk
0:01:24.9]} 0-1

[Event "*** Titled Tuesday Blitz AM"]
[Site "Chess.com"]
[Date "2020.01.07"]
[Round "2"]
[White "AtabayevSaparmyrat"]
[Black "Firouzja2003"]
[Result "0-1"]
[WhiteElo "2693"]
[BlackElo "3090"]
[TimeControl "180+2"]
[EndTime "9:20:50 PST"]
[Termination "Firouzja2003 won by resignation"]

1. e4 {[%clk 0:02:58.8]} 1... d5 {[%clk 0:03:00.5]} 2. exd5 {[%clk 0:02:58.3]}
2... Qxd5 {[%clk 0:03:02.4]} 3. Nc3 {[%clk 0:02:58.2]} 3... Qa5 {[%clk
0:03:03.2]} 4. Nf3 {[%clk 0:02:59.5]} 4... Nf6 {[%clk 0:03:01.6]} 5. d4 {[%clk
0:03:00.5]} 5... Bf5 {[%clk 0:02:58.2]} 6. Bd3 {[%clk 0:02:57.7]} 6... Bxd3
{[%clk 0:02:55.7]} 7. Qxd3 {[%clk 0:02:58.6]} 7... e6 {[%clk 0:02:57.2]} 8. Qb5+
{[%clk 0:02:56.6]} 8... Qxb5 {[%clk 0:02:45.8]} 9. Nxb5 {[%clk 0:02:58.5]} 9...
Na6 {[%clk 0:02:47.5]} 10. O-O {[%clk 0:02:50.7]} 10... c6 {[%clk 0:02:48.4]}
11. Nc3 {[%clk 0:02:50]} 11... Be7 {[%clk 0:02:49.4]} 12. Bg5 {[%clk 0:02:47.7]}
12... O-O {[%clk 0:02:50.3]} 13. Ne4 {[%clk 0:02:41.2]} 13... Rfd8 {[%clk
0:02:42.9]} 14. c3 {[%clk 0:02:33]} 14... Nc7 {[%clk 0:02:39.5]} 15. Bxf6 {[%clk
0:02:31.2]} 15... gxf6 {[%clk 0:02:37.3]} 16. Rfd1 {[%clk 0:02:31.1]} 16... Nd5
{[%clk 0:02:38.1]} 17. Kf1 {[%clk 0:02:27.7]} 17... Rac8 {[%clk 0:02:37.6]} 18.
Ned2 {[%clk 0:02:15.9]} 18... c5 {[%clk 0:02:34]} 19. dxc5 {[%clk 0:02:16.4]}
19... Bxc5 {[%clk 0:02:35.9]} 20. Ne4 {[%clk 0:02:15.6]} 20... Be7 {[%clk
0:02:36.6]} 21. Rd2 {[%clk 0:02:13]} 21... b5 {[%clk 0:02:32.5]} 22. Rad1 {[%clk
0:02:10.2]} 22... b4 {[%clk 0:02:26.6]} 23. cxb4 {[%clk 0:02:10]} 23... Bxb4
{[%clk 0:02:24.5]} 24. Rd4 {[%clk 0:01:58.7]} 24... Be7 {[%clk 0:02:20.2]} 25.
g4 {[%clk 0:01:34.7]} 25... Kg7 {[%clk 0:02:12.7]} 26. h3 {[%clk 0:01:28.2]}
26... Rc2 {[%clk 0:02:10.4]} 27. R4d2 {[%clk 0:01:25.4]} 27... Rdc8 {[%clk
0:01:58]} 28. a3 {[%clk 0:01:24.7]} 28... Rxd2 {[%clk 0:01:44.3]} 29. Rxd2
{[%clk 0:01:14.3]} 29... Rc1+ {[%clk 0:01:44.1]} 30. Kg2 {[%clk 0:01:05.6]}
30... h5 {[%clk 0:01:45.3]} 31. Neg5 {[%clk 0:01:07.1]} 31... fxg5 {[%clk
0:01:42.6]} 0-1

[Event "*** Titled Tuesday Blitz AM"]
[Site "Chess.com"]
[Date "2020.01.07"]
[Round "2"]
[White "Everyfishknows"]
[Black "TregubovP"]
[Result "0-1"]
[WhiteElo "2328"]
[BlackElo "2559"]
[TimeControl "180+2"]
[EndTime "9:20:58 PST"]
[Termination "TregubovP won by resignation"]

1. Nf3 {[%clk 0:03:01.9]} 1... c5 {[%clk 0:02:58.7]} 2. c4 {[%clk 0:02:53.9]}
2... Nc6 {[%clk 0:02:58.7]} 3. d4 {[%clk 0:02:54.8]} 3... cxd4 {[%clk
0:02:59.1]} 4. Nxd4 {[%clk 0:02:56.7]} 4... g6 {[%clk 0:02:59.1]} 5. e4 {[%clk
0:02:57.2]} 5... Bg7 {[%clk 0:03:00.5]} 6. Be3 {[%clk 0:02:57.9]} 6... Nf6
{[%clk 0:02:59.9]} 7. Nc3 {[%clk 0:02:58.3]} 7... O-O {[%clk 0:02:59.7]} 8. Be2
{[%clk 0:02:59.1]} 8... d6 {[%clk 0:02:59]} 9. O-O {[%clk 0:03:00.2]} 9... Bd7
{[%clk 0:03:00.3]} 10. Qd2 {[%clk 0:03:00.4]} 10... Rc8 {[%clk 0:02:59.3]} 11.
Rac1 {[%clk 0:02:58.8]} 11... Ng4 {[%clk 0:02:57.7]} 12. Bxg4 {[%clk 0:02:59.4]}
12... Bxg4 {[%clk 0:02:59]} 13. f3 {[%clk 0:03:00.8]} 13... Bd7 {[%clk
0:02:56.7]} 14. b3 {[%clk 0:03:01.3]} 14... a6 {[%clk 0:02:57]} 15. Rfd1 {[%clk
0:03:02.2]} 15... Ne5 {[%clk 0:02:54.5]} 16. Nd5 {[%clk 0:02:53.3]} 16... e6
{[%clk 0:02:36.1]} 17. Nc3 {[%clk 0:02:49.7]} 17... Qa5 {[%clk 0:02:31.1]} 18.
Nde2 {[%clk 0:02:43.5]} 18... b5 {[%clk 0:02:28.9]} 19. cxb5 {[%clk 0:02:36.3]}
19... axb5 {[%clk 0:02:30]} 20. Qxd6 {[%clk 0:02:19.4]} 20... b4 {[%clk
0:02:30.8]} 21. Na4 {[%clk 0:01:33.8]} 21... Bxa4 {[%clk 0:02:28]} 22. bxa4
{[%clk 0:01:30.9]} 22... Nc4 {[%clk 0:02:20.8]} 23. Qd3 {[%clk 0:00:29.6]} 23...
Nb2 {[%clk 0:02:10.4]} 24. Qb5 {[%clk 0:00:30.5]} 24... Qxb5 {[%clk 0:02:11]}
25. axb5 {[%clk 0:00:31.5]} 25... Nxd1 {[%clk 0:02:11]} 26. Rxd1 {[%clk
0:00:32.6]} 26... Rc2 {[%clk 0:02:11.2]} 27. Kf2 {[%clk 0:00:17.7]} 27... Rxa2
{[%clk 0:02:10.3]} 28. Rb1 {[%clk 0:00:19.2]} 28... Rb2 {[%clk 0:02:07.6]} 29.
Rc1 {[%clk 0:00:16.8]} 29... b3 {[%clk 0:02:08.2]} 30. Ke1 {[%clk 0:00:14.3]}
30... Ra2 {[%clk 0:02:07]} 31. Nd4 {[%clk 0:00:05.9]} 31... b2 {[%clk
0:02:06.3]} 32. Rb1 {[%clk 0:00:04.6]} 32... Ra1 {[%clk 0:02:07.4]} 0-1